[Event "10th Cherry Blossom Classic 2023"]
[Site "Dulles"]
[Date "2023.05.28"]
[Round "6.7"]
[White "Hilby, Craig"]
[Black "Ouellet, Maili-Jade"]
[Result "1-0"]
[ECO "D41"]
[WhiteElo "2401"]
[BlackElo "2246"]
[Annotator "TA"]
[PlyCount "55"]
[EventDate "2023.05.24"]
[EventType "swiss"]
[EventCountry "USA"]
[SourceTitle "playchess.com"]
[Source "ChessBase"]
[SourceQuality "1"]
[TimeControl "5400+30"]

{[%evp 19,55,1,20,18,12,21,53,41,57,62,61,53,54,58,103,100,83,88,87,87,95,13,25,33,20,34,34,12,440,432,564,536,547,544,1857,1770,29984,29985]} 1. d4 {[%emt 0:00:02]} d5 {[%emt 0:03:56]} 2. Nf3 {[%emt 0:00:07]} Nf6 {[%emt 0:00:04]} 3. g3 {[%emt 0:00:05]} e6 {[%emt 0:00:32]} 4. Bg2 {[%emt 0:00:07]} c5 {[%emt 0:00:50]} 5. c4 {[%emt 0:00:09]} cxd4 {[%emt 0:01:34]} 6. O-O {[%emt 0:00:12]} Be7 {[%emt 0:01:59]} 7. cxd5 {[%emt 0:02:28]} Nxd5 {[%emt 0:02:32]} 8. Nxd4 {[%emt 0:00:15]} O-O {[%emt 0:01:09]} 9. Nc3 {[%emt 0:12:23]} Nxc3 {[%emt 0:03:39]} 10. bxc3 {[%emt 0:00:03]} a6 {[%emt 0:04:54]} 11. Qc2 {[%emt 0:08:54] D41: Queen's Gambit Declined: Semi-Tarrasch with 5 cxd5.} Qc7 {[%emt 0:02:18]} 12. Rb1 {[%emt 0:01:01] [#]} h6 $146 {[%emt 0:27:21]} ({Predecessor:} 12... g6 13. Bh6 Re8 14. Rfd1 e5 15. Nf3 Bf5 16. e4 Be6 17. Ng5 Bc4 18. Bf1 b5 19. a4 Nd7 20. axb5 axb5 21. Rxb5 Rac8 22. Rbb1 {½-½ Ali Marandi,C (2385)-Firat,B (2458) Olomouc GM 17th 2014 (5)}) 13. Rd1 {[%emt 0:06:47] White is slightly better.} Bc5 {[%emt 0:01:39]} 14. Nb3 {[%emt 0:14:16]} Be7 {[%emt 0:01:36]} 15. Be3 {[%emt 0:09:36]} Nd7 {[%emt 0:03:52]} 16. c4 {[%emt 0:05:22]} Nc5 {[%emt 0:11:54]} 17. Nxc5 {[%emt 0:00:54]} Bxc5 {[%emt 0:00:04]} 18. Bxc5 {[%emt 0:00:10]} Qxc5 {[%emt 0:00:04]} 19. Qb3 {[%emt 0:05:34]} Qc7 {[%emt 0:03:59]} 20. Qb6 {[%emt 0:02:44] White is more active.} (20. Bxb7 $2 Rb8 21. Qc3 Bxb7 $19) ({White should play} 20. h4 $16) 20... Qxc4 $11 {[%emt 0:03:16]} 21. Rd8 {[%emt 0:11:11]} (21. Bxb7 Bxb7 22. Qxb7 Qxe2 $17) 21... Rxd8 {[%emt 0:00:52]} 22. Qxd8+ {[%emt 0:00:02]} Kh7 {[%emt 0:00:01][%cal Oe6e5]} 23. h4 {[%emt 0:01:50][%cal Bh2h4,Bh4h5][%mdl 32]} (23. Qe8 $5 {[%cal Re8f7]}) 23... a5 $2 {[%emt 0:06:37][%mdl 8192] Loses the game.} (23... Qxe2 24. Rc1 $18 (24. Bxb7 $2 Bxb7 25. Qd1 Qe4 $19)) (23... e5 $1 $11 {and Black stays safe.}) 24. Qf8 $18 {[%emt 0:02:52] aiming for Rd1.} e5 {[%emt 0:10:59] [#]} (24... Qxa2 $2 25. Rc1 f6 26. Be4+ f5 27. Bf3 $18 (27. Rxc8 Rxc8 28. Bxf5+ exf5 $11)) (24... Qxe2 $2 25. Qxf7 Qd3 26. Rc1 $18) 25. Rd1 $1 {[%emt 0:01:00] Threatens to win with Rd8.} Qxe2 {[%emt 0:01:33]} 26. Rd8 {[%emt 0:00:41] Qh8+ would be deadly.} Qe1+ {[%emt 0:02:07] [#]} 27. Kh2 $1 {[%emt 0:00:22] h5 would kill now.} ({Don't go for} 27. Bf1 $2 Be6 28. Rxa8 Bc4 $19) 27... Qxf2 {[%emt 0:00:08]} 28. h5 {[%emt 0:00:52] Weighted Error Value: White=0.11 (very precise) /Black=0.86} ({Not} 28. Rxc8 Rxc8 29. Qxc8 Qxa2 $14) 1-0

[Event "10th Cherry Blossom Classic 2023"]
[Site "Dulles"]
[Date "2023.05.28"]
[Round "6.8"]
[White "Stearman, Josiah"]
[Black "Marjanovic, Annamaria"]
[Result "1/2-1/2"]
[ECO "C91"]
[WhiteElo "2385"]
[BlackElo "2273"]
[Annotator "TA"]
[PlyCount "42"]
[EventDate "2023.05.24"]
[EventType "swiss"]
[EventCountry "USA"]
[SourceTitle "playchess.com"]
[Source "ChessBase"]
[SourceQuality "1"]
[TimeControl "5400+30"]

{[%evp 20,42,11,10,19,12,14,18,12,15,27,20,20,0,0,0,0,0,0,-17,0,0,0,0,10]} 1. e4 {[%emt 0:12:42]} e5 {[%emt 0:00:08]} 2. Nf3 {[%emt 0:00:03]} Nc6 {[%emt 0:00:12]} 3. Bb5 {[%emt 0:00:04]} a6 {[%emt 0:00:06]} 4. Ba4 {[%emt 0:00:06]} Nf6 {[%emt 0:00:05]} 5. O-O {[%emt 0:00:08]} Be7 {[%emt 0:00:11]} 6. Re1 {[%emt 0:00:05]} b5 {[%emt 0:00:10]} 7. Bb3 {[%emt 0:00:03]} d6 {[%emt 0:00:06]} 8. c3 {[%emt 0:00:35]} O-O {[%emt 0:00:30]} 9. d4 {[%emt 0:00:04]} Bg4 {[%emt 0:00:21]} 10. Be3 {[%emt 0:00:10]} Bh5 {[%emt 0:00:37]} 11. Nbd2 {[%emt 0:00:07]} d5 {[%emt 0:17:31] C91: Closed Ruy Lopez: 7...d6 8 c3 0-0 9 d4.} 12. exd5 {[%emt 0:33:15]} Nxd5 {[%emt 0:10:28]} 13. Bxd5 {[%emt 0:00:19]} Qxd5 {[%emt 0:00:10]} 14. Qb3 {[%emt 0:00:03]} Rad8 {[%emt 0:25:30] [#]} 15. Nxe5 $146 {[%emt 0:01:26]} ({Predecessor:} 15. Qxd5 Rxd5 16. dxe5 Rfd8 17. h3 Nxe5 18. Nxe5 Rxe5 19. Bd4 Rxe1+ 20. Rxe1 c5 21. Rxe7 cxd4 22. cxd4 Kf8 23. Ra7 Rxd4 24. Nb3 {½-½ Stripunsky,A (2360)-Zvjaginsev,V (2400) Moscow6 1991}) 15... Nxe5 {[%emt 0:00:27] The position is equal.} 16. dxe5 {[%emt 0:00:21]} (16. Qxd5 {simplifies} Rxd5 17. dxe5 b4 18. f4) 16... Qxe5 {[%emt 0:02:22]} 17. Bd4 {[%emt 0:00:24][%mdl 64] [#] Pin} Qd6 {[%emt 0:02:58]} 18. Ne4 {[%emt 0:00:29]} Qd7 {[%emt 0:02:43]} 19. a4 {[%emt 0:00:16]} Bg6 {[%emt 0:02:47]} 20. axb5 {[%emt 0:00:23]} axb5 {[%emt 0:03:46]} 21. Nc5 {[%emt 0:00:34]} Bxc5 {[%emt 0:01:13] A rather calm draw.   Weighted Error Value: White=0.03 (flawless) /Black=0.07 (flawless)} 1/2-1/2

[Event "10th Cherry Blossom Classic 2023"]
[Site "Dulles"]
[Date "2023.05.28"]
[Round "6.9"]
[White "Park, Evan"]
[Black "Morefield, Jason"]
[Result "1/2-1/2"]
[ECO "C65"]
[WhiteElo "2380"]
[BlackElo "2167"]
[Annotator "TA"]
[PlyCount "145"]
[EventDate "2023.05.24"]
[EventType "swiss"]
[EventCountry "USA"]
[SourceTitle "playchess.com"]
[Source "ChessBase"]
[SourceQuality "1"]
[TimeControl "5400+30"]

{[%evp 9,145,9,7,4,11,11,11,6,27,25,26,21,26,13,8,12,18,20,10,13,6,6,10,4,10,1,14,8,5,11,22,11,6,14,18,0,32,23,35,0,14,0,32,34,34,32,24,25,35,11,10,10,43,34,45,33,24,26,29,5,43,3,40,41,42,0,0,0,14,0,0,0,12,11,29,17,29,16,20,8,67,29,55,22,26,13,70,58,114,71,119,74,90,99,82,85,125,75,91,71,69,68,69,81,76,68,70,67,85,95,94,101,117,110,105,70,70,70,70,33,33,33,49,0,0,0,0,0,0,0,0,0,0,0,0,0,0,0]} 1. e4 {[%emt 0:03:21]} e5 {[%emt 0:00:08]} 2. Nf3 {[%emt 0:00:04]} Nc6 {[%emt 0:00:07]} 3. Bb5 {[%emt 0:00:09]} Nf6 {[%emt 0:00:07]} 4. d3 {[%emt 0:01:56]} Bc5 {[%emt 0:00:08]} 5. c3 {[%emt 0:00:28]} d5 {[%emt 0:00:10]} 6. Nbd2 {[%emt 0:03:48] C65: Ruy Lopez: Berlin Defence (3...Nf6), unusual lines and 4 0-0 Bc5.} O-O {[%emt 0:00:43]} 7. O-O {[%emt 0:00:20]} dxe4 {[%emt 0:00:15]} 8. dxe4 {[%emt 0:03:16]} a5 {[%emt 0:00:07]} 9. Bxc6 {[%emt 0:05:12] is the legacy move (9.a3).} bxc6 {[%emt 0:00:06]} 10. Nxe5 {[%emt 0:00:22]} Re8 {[%emt 0:05:00]} 11. Nxc6 {[%emt 0:01:49] A dynamic duo of knights.} Qd7 {[%emt 0:01:14] [#]} 12. Nd4 {[%emt 0:00:17]} Bxd4 {[%emt 0:01:25]} (12... a4 13. e5) 13. cxd4 {[%emt 0:00:04]} Qxd4 {[%emt 0:00:14]} 14. Nf3 {[%emt 0:01:38]} (14. Qc2 {seems wilder.} Ba6 15. Re1 Bd3 16. Qxc7 Bxe4 17. Qc3) 14... Qxe4 {[%emt 0:02:06]} 15. Re1 {[%emt 0:02:34]} Qb7 {[%emt 0:03:47]} 16. Rxe8+ {[%emt 0:08:22]} Nxe8 {[%emt 0:00:15]} 17. Qd4 {[%emt 0:00:39] [#]} a4 $146 {[%emt 0:04:00] Black is weak on the dark squares} ({Predecessor:} 17... Be6 18. Bd2 c5 19. Qxc5 {½-½ Krebs,J (2331)-Mihatsch,T (2335) GER-ch50 V04 email 2018}) 18. Bf4 {[%emt 0:05:07]} Be6 {[%emt 0:00:26]} 19. a3 {[%emt 0:01:02]} Bd5 {[%emt 0:00:53]} 20. Nh4 {[%emt 0:00:23]} Be6 {[%emt 0:05:43]} 21. Re1 {[%emt 0:07:50]} h6 {[%emt 0:02:20]} 22. Ng6 {[%emt 0:05:09][%cal Oh2h3][%mdl 64] Deflection} Qb6 {[%emt 0:07:50]} 23. Ne7+ {[%emt 0:03:32]} Kf8 {[%emt 0:01:11]} 24. Ng6+ {[%emt 0:02:59]} Kg8 $1 {[%emt 0:00:09]} 25. Ne7+ {[%emt 0:01:03]} Kf8 {[%emt 0:00:06]} 26. Qe4 {[%emt 0:00:52]} Rd8 {[%emt 0:06:49]} 27. Nc6 {[%emt 0:01:11]} Rd5 {[%emt 0:01:11]} 28. Nb4 {[%emt 0:00:28]} Rd8 {[%emt 0:12:35]} 29. Be3 {[%emt 0:02:14]} Qb5 {[%emt 0:02:21]} 30. Nc6 {[%emt 0:03:48]} Nd6 {[%emt 0:05:02]} 31. Qc2 {[%emt 0:01:46]} ({Much weaker is} 31. Qh4 Re8 32. Nd4 Qxb2 33. Nxe6+ Rxe6 $11) 31... Bf5 {[%emt 0:00:35]} 32. Qc1 {[%emt 0:00:26]} Re8 {[%emt 0:00:16]} 33. Nd4 {[%emt 0:00:20][%csl LRb5,LRc7]} Qd7 {[%emt 0:00:41]} 34. Qc5 {[%emt 0:01:17]} Be4 {[%emt 0:04:11]} 35. h3 {[%emt 0:00:51]} Bb7 {[%emt 0:01:18]} 36. Rc1 {[%emt 0:00:45]} Re7 {[%emt 0:01:11]} 37. b4 {[%emt 0:11:04]} axb3 {[%emt 0:01:39]} 38. Nxb3 {[%emt 0:00:05][%cal Bd4b3,Bb3a5,Ba5c6,Bc6e5][%mdl 32]} Kg8 {[%emt 0:00:14]} 39. Na5 {[%emt 0:02:41]} Ne4 {[%emt 0:03:05]} 40. Qd4 {[%emt 0:02:17]} Qxd4 {[%emt 0:02:17]} (40... Bd5 $5) 41. Bxd4 {[%emt 0:00:03]} Bd5 {[%emt 0:00:11]} 42. Nc6 {[%emt 0:00:15]} Rd7 {[%emt 0:00:48] ...Bxc6 is the strong threat.} 43. Ne5 {[%emt 0:00:09]} Re7 {[%emt 0:00:32]} 44. f3 {[%emt 0:02:01]} Nd6 {[%emt 0:00:42]} ({Better is} 44... Ng5 $11) 45. Rc5 {[%emt 0:00:34]} Bb7 {[%emt 0:00:07]} 46. Bc3 {[%emt 0:00:32]} f6 {[%emt 0:00:43]} 47. Nc6 {[%emt 0:00:17]} Rd7 {[%emt 0:00:19]} (47... Bxc6 $1 $11 48. Rxc6 Nb5) 48. a4 $14 {[%emt 0:00:44][%cal Ba3a4,Ba4a5,Ba5a6][%mdl 32]} Kf7 {[%emt 0:01:19]} (48... Nf7 $14) 49. a5 {[%emt 0:01:45] White is more active.} Ke8 {[%emt 0:00:53]} (49... Bxc6 $142 50. Rxc6 Nb5) 50. Nb4 {[%emt 0:02:59]} Kd8 {[%emt 0:03:04]} 51. a6 {[%emt 0:00:07]} Ba8 {[%emt 0:00:15]} 52. Nd5 {[%emt 0:02:37]} Ne8 {[%emt 0:01:09] [#]} 53. Nf4 {[%emt 0:00:34]} (53. Rb5 $142 $1 {[%cal Rb5b8]} Kc8 54. a7) 53... Rd6 {[%emt 0:01:06]} 54. a7 {[%emt 0:01:37]} Ra6 {[%emt 0:00:48]} 55. Ra5 {[%emt 0:00:38]} Rxa5 {[%emt 0:00:09]} 56. Bxa5 {[%emt 0:00:01][%mdl 4096] Endgame KBN-KBN} g5 {[%emt 0:02:06]} 57. Nd3 {[%emt 0:00:41]} Nd6 {[%emt 0:00:31]} 58. Bb4 {[%emt 0:00:57]} Nc8 {[%emt 0:01:37]} 59. Bc5 {[%emt 0:00:27]} Nb6 {[%emt 0:00:17]} 60. Bd4 {[%emt 0:00:37]} Nd7 {[%emt 0:00:41]} 61. Kf2 {[%emt 0:00:35]} Ke7 {[%emt 0:00:32]} 62. Nc5 {[%emt 0:00:35]} Nxc5 {[%emt 0:01:02]} 63. Bxc5+ {[%emt 0:00:02] KB-KB} Ke6 {[%emt 0:00:57]} 64. g4 {[%emt 0:00:15] aiming for Bf8.} Kf7 $1 {[%emt 0:00:13] Prevents Bf8.} 65. Ke3 {[%emt 0:00:21]} Kg6 {[%emt 0:00:10]} 66. f4 {[%emt 0:01:23]} (66. Bf8 $14) 66... f5 $1 $11 {[%emt 0:00:50] The position is equal.} 67. Bd4 {[%emt 0:01:03]} fxg4 {[%emt 0:01:10]} 68. hxg4 {[%emt 0:00:04] Hoping for f5+.} gxf4+ $1 {[%emt 0:00:15]} 69. Kxf4 {[%emt 0:00:04]} h5 {[%emt 0:01:12]} 70. gxh5+ {[%emt 0:00:33]} Kxh5 {[%emt 0:19:57]} 71. Kf5 {[%emt 0:00:13]} c5 {[%emt 0:00:00]} 72. Bxc5 {[%emt 0:00:07]} Bb7 {[%emt 0:00:00]} 73. Ke6 {[%emt 0:00:07] Weighted Error Value: White=0.10 (very precise) /Black=0.13 (very precise)} 1/2-1/2

[Event "10th Cherry Blossom Classic 2023"]
[Site "Dulles"]
[Date "2023.05.28"]
[Round "6.10"]
[White "Sriniaiyer, Sudarshan"]
[Black "Muzychuk, Anna"]
[Result "1/2-1/2"]
[ECO "E49"]
[WhiteElo "2211"]
[BlackElo "2504"]
[Annotator "TA"]
[PlyCount "40"]
[EventDate "2023.05.24"]
[EventType "swiss"]
[EventCountry "USA"]
[SourceTitle "playchess.com"]
[Source "ChessBase"]
[SourceQuality "1"]
[TimeControl "5400+30"]

{[%evp 15,40,2,0,0,10,6,9,1,34,33,27,29,47,47,35,0,0,14,19,19,38,28,72,34,35,23,34]} 1. d4 {[%emt 0:01:06]} Nf6 {[%emt 0:00:05]} 2. c4 {[%emt 0:00:06]} e6 {[%emt 0:00:03]} 3. Nc3 {[%emt 0:00:03]} Bb4 {[%emt 0:00:06]} 4. e3 {[%emt 0:00:26]} O-O {[%emt 0:00:06]} 5. Bd3 {[%emt 0:01:13]} d5 {[%emt 0:00:06]} 6. a3 {[%emt 0:02:43]} Bxc3+ {[%emt 0:00:07]} 7. bxc3 {[%emt 0:00:02]} dxc4 {[%emt 0:00:07]} 8. Bxc4 {[%emt 0:00:06]} c5 {[%emt 0:00:03]} 9. Bb2 {[%emt 0:01:24] E49: Nimzo-Indian: Rubinstein: 5 Bd3 d5 6 a3 Bxc3+ 7 bxc3.} ({Much worse is} 9. dxc5 Qxd1+ 10. Kxd1 Nbd7 $17) 9... Qc7 {[%emt 0:00:06] [#] aiming for ...cxd4.} (9... Qb6 $5 {[%cal Rb6b2]} 10. Qe2 Bd7 $11) 10. Bd3 {[%emt 0:03:28]} b6 {[%emt 0:04:15]} 11. Qe2 {[%emt 0:05:26] The position is equal.} Bb7 {[%emt 0:00:37]} 12. e4 {[%emt 0:05:58]} Nbd7 {[%emt 0:15:17]} 13. Nh3 {[%emt 0:14:09]} c4 {[%emt 0:08:02]} 14. Bc2 {[%emt 0:01:43]} e5 {[%emt 0:00:05] [#] Hoping for ...exd4.} 15. d5 $146 {[%emt 0:04:52]} ({Predecessor:} 15. O-O Rac8 16. f3 exd4 17. cxd4 c3 18. Bc1 Qc4 19. Qxc4 Rxc4 20. Be3 Rc7 21. Rfc1 {1-0 Storkebaum,K (2301)-Portych,V (2195) FIN jub50 Gr43 email 2012}) 15... Nc5 {[%emt 0:00:06]} 16. f3 {[%emt 0:03:19]} Ne8 {[%emt 0:07:34][%cal Of7f5]} 17. O-O {[%emt 0:04:25]} Nd6 {[%emt 0:01:06]} 18. Nf2 {[%emt 0:00:59]} g6 {[%emt 0:00:55]} 19. Rad1 {[%emt 0:08:13]} Rae8 {[%emt 0:01:14]} 20. g4 {[%emt 0:15:30]} f6 {[%emt 0:04:11] Weighted Error Value: White=0.08 (flawless) /Black=0.10 (very precise)} 1/2-1/2

[Event "10th Cherry Blossom Classic 2023"]
[Site "Dulles"]
[Date "2023.05.28"]
[Round "6.11"]
[White "Tanenbaum, Zachary"]
[Black "Plotkin, Mark"]
[Result "1-0"]
[ECO "B35"]
[WhiteElo "2261"]
[BlackElo "2341"]
[Annotator "TA"]
[PlyCount "59"]
[EventDate "2023.05.24"]
[EventType "swiss"]
[EventCountry "USA"]
[SourceTitle "playchess.com"]
[Source "ChessBase"]
[SourceQuality "1"]
[TimeControl "5400+30"]

{[%evp 22,59,40,8,57,39,88,79,104,101,158,116,148,135,270,203,205,205,232,197,334,347,725,709,742,283,527,518,597,595,569,570,1951,1881,29987,29988,29996,29997,29997,29998]} 1. e4 {[%emt 0:25:22]} c5 {[%emt 0:00:20]} 2. Nf3 {[%emt 0:00:41]} Nc6 {[%emt 0:00:07]} 3. Nc3 {[%emt 0:00:04]} g6 {[%emt 0:06:02]} 4. d4 {[%emt 0:00:03]} cxd4 {[%emt 0:00:05]} 5. Nxd4 {[%emt 0:00:03]} Bg7 {[%emt 0:00:05]} 6. Be3 {[%emt 0:00:01]} Nf6 {[%emt 0:00:07]} 7. Bc4 {[%emt 0:00:02]} O-O {[%emt 0:01:53]} 8. Bb3 {[%emt 0:00:01]} d6 {[%emt 0:01:07]} 9. h3 {[%emt 0:00:02]} Bd7 {[%emt 0:02:02]} 10. O-O {[%emt 0:00:07]} Rc8 {[%emt 0:00:35]} 11. f4 {[%emt 0:00:39][%cal Bf2f4,Bf4f5,Bf5g6][%mdl 32]} Qa5 {[%emt 0:04:05] was the old line (11...Nxd4).} 12. Qd3 {[%emt 0:06:35]} Rfd8 {[%emt 0:06:05] B35: Sicilian: Accelerated Dragon with 5 Nc3: main line.} (12... Nxd4 $11 {should be considered.} 13. Bxd4 (13. Qxd4 Nh5 $11) 13... Bc6) 13. Rae1 {[%emt 0:16:45]} a6 {[%emt 0:05:19]} (13... Nxd4 $14 14. Bxd4 (14. Qxd4 Be6 $11) 14... e5 15. fxe5 dxe5) 14. Nxc6 {[%emt 0:03:40]} (14. Qc4 $6 d5 15. exd5 (15. Nxd5 Nxd5 16. Nxc6 Bxc6 $17) 15... Nb4 $11) 14... Bxc6 {[%emt 0:00:42] White is better.} 15. f5 {[%emt 0:01:05] [#]} (15. Qc4 d5 16. Qc5 Qxc5 17. Bxc5 d4 $17) 15... Rf8 $146 {[%emt 0:15:05] [#]} ({Black should play} 15... Rd7) ({Predecessor:} 15... b5) 16. e5 $1 $16 {[%emt 0:11:18][%mdl 512]} dxe5 {[%emt 0:09:24]} 17. fxg6 {[%emt 0:00:12] White is more active.} e4 {[%emt 0:03:40]} (17... hxg6 $16 18. Qxg6 Bd5) 18. Bxf7+ {[%emt 0:02:57]} Kh8 {[%emt 0:00:01]} 19. Qe2 {[%emt 0:03:14]} Qe5 {[%emt 0:05:04]} 20. Rf4 {[%emt 0:07:41]} b5 {[%emt 0:07:18]} (20... Bh6 $142 21. Qf2 Rxf7) 21. Qf2 $18 {[%emt 0:02:58]} Be8 $2 {[%emt 0:02:33]} (21... Bh6 22. Rf5 Bxe3 23. Rxe3 (23. Rxe5 $2 {too greedy.} Bxf2+ 24. Kxf2 hxg6 $19) 23... Qd6) 22. Bd4 {[%emt 0:06:01]} Qc7 {[%emt 0:01:19]} 23. Bxe8 $2 {[%emt 0:07:37]} (23. Rxf6 Bxf7 24. Rxf7 Rxf7 25. gxf7) 23... Rfxe8 $2 {[%emt 0:03:44]} (23... e5 {keeps fighting.} 24. Nd5 (24. Nxe4 exf4 25. Bf7 Qxc2 $18) 24... Qd6) 24. Nxe4 {[%emt 0:01:13]} hxg6 {[%emt 0:00:31]} 25. Ng5 {[%emt 0:01:42]} Kg8 {[%emt 0:02:11]} 26. Ne6 {[%emt 0:00:25]} Qd7 {[%emt 0:00:11]} 27. Nxg7 {[%emt 0:00:20][%mdl 64] Remove Defender} Kxg7 {[%emt 0:00:02] Black is weak on the dark squares} 28. Rxf6 {[%emt 0:00:43] White mates.} ({Not} 28. Bxf6+ exf6 29. Rxe8 Qxe8 $16) 28... exf6 {[%emt 0:00:27]} 29. Qxf6+ {[%emt 0:00:09]} Kh7 {[%emt 0:00:04]} 30. Qh4+ {[%emt 0:00:18] Black got outplayed after the opening.   Weighted Error Value: White=0.43/Black=0.83} 1-0